bitfinex-derivatives/quotes_ETHF0:USTF0_20250112
["timestamp","ask_amount","ask_price","bid_price","bid_amount"]
[1736657713357,1.95437865,3285.1,3285.0,1.21685446]
[1736657718957,1.95437865,3285.1,3285.0,0.21318]
[1736657719158,1.95437865,3285.1,3285.0,0.56767769]
[1736657719555,3.17123311,3285.1,3285.0,0.56767769]
[1736657719862,3.64633311,3285.1,3285.0,0.21318]
[1736657720560,2.42947865,3285.1,3285.0,0.21318]
[1736657720762,2.42947865,3285.1,3285.0,0.67838]
[1736657721354,2.42947865,3285.1,3285.0,1.03310804]
[1736657721555,1.95437865,3285.1,3285.0,1.03311945]
[1736657722064,1.95437865,3285.1,3285.0,1.03312071]
[1736657722973,1.95437865,3285.1,3285.0,1.50782071]
[1736657723764,1.95437865,3285.1,3285.0,1.50802701]
[1736657725269,0.68177,3285.2,3285.1,0.21318]
[1736657725763,2.63614865,3285.2,3285.1,0.21318]
[1736657731073,2.42297865,3285.2,3285.1,0.21318]
[1736657731564,2.42297865,3285.2,3284.6,1.53668446]
[1736657731565,1.95437865,3285.2,3284.6,1.53668446]
[1736657731870,3.42099,3285.0,3284.9,0.21318]
[1736657732072,5.37536865,3285.0,3284.9,0.21318]
[1736657732670,0.21319,3284.9,3284.8,0.21319]
[1736657732871,1.00367446,3284.9,3284.8,0.21319]
[1736657733069,2.95805311,3284.9,3284.8,0.21319]
[1736657733262,2.95805311,3284.9,3284.8,0.56831514]
[1736657733469,3.17124311,3284.9,3284.8,0.56831514]
[1736657733668,2.95805311,3284.9,3284.8,0.56831514]
[1736657733971,2.95805311,3284.9,3284.8,0.56830211]
[1736657734372,3.17124311,3284.9,3284.8,0.56830211]
[1736657734766,2.95805311,3284.9,3284.8,0.56830211]
[1736657735265,3.17124311,3284.9,3284.8,0.56830211]
[1736657735774,3.17124311,3284.9,3284.8,0.56829139]
[1736657736273,2.95805311,3284.9,3284.8,0.56829139]
[1736657737767,2.95805311,3284.9,3284.8,0.56827754]
[1736657738265,2.95805311,3284.9,3284.8,0.56827807]
[1736657738466,3.17124311,3284.9,3284.8,0.56827807]
[1736657738874,3.17124311,3284.9,3284.8,0.35508807]
[1736657739066,0.21321,3284.6,3284.5,0.21321]
[1736657739267,0.21322,3284.4,3284.3,0.21322]
[1736657739463,3.17127311,3284.4,3284.3,0.21322]
[1736657739667,3.38418311,3284.4,3284.3,0.21322]
[1736657741675,3.17096311,3284.4,3284.3,0.21322]
[1736657742577,2.16728865,3284.4,3284.3,0.21322]
[1736657744474,3.17096311,3284.4,3284.0,1.3285]
[1736657744673,1.95437865,3284.1,3284.0,1.54175]
[1736657744879,1.95437865,3284.1,3284.0,1.89622896]
[1736657746179,1.95437865,3284.1,3284.0,1.89618272]
[1736657747578,1.95437865,3284.1,3284.0,2.89985718]
[1736657747778,1.95437865,3284.1,3284.0,2.89980525]
[1736657749671,1.95437865,3284.1,3284.0,2.89978281]
[1736657751778,1.95437865,3284.1,3284.0,1.89606429]
[1736657753176,1.95437865,3284.1,3284.0,0.56756429]
[1736657753177,2.16728865,3284.1,3284.0,0.56756429]
[1736657753781,2.16728865,3284.1,3284.0,0.56755812]
[1736657754182,2.16728865,3284.1,3284.0,0.21325]
[1736657754378,2.16728865,3284.1,3284.0,0.56755858]
[1736657754684,1.95437865,3284.1,3284.0,0.56755858]
[1736657755181,1.21689446,3284.4,3284.3,0.21323]
[1736657755586,3.17127311,3284.4,3284.3,0.21323]
[1736657756082,2.95805311,3284.4,3284.3,0.21323]
[1736657756383,1.95437865,3284.4,3284.3,0.65913]
[1736657760485,1.95437865,3284.4,3284.3,1.66280446]
[1736657760882,1.95437865,3284.4,3284.3,2.01726169]
[1736657761379,1.95437865,3284.4,3284.3,1.66280446]
[1736657761584,1.95437865,3284.4,3284.3,2.01731049]
[1736657763385,1.95437865,3284.4,3284.3,1.66280446]
[1736657765088,3.2078,3284.7,3284.6,0.21321]
[1736657765482,5.16217865,3284.7,3284.6,0.21321]
[1736657766785,5.16217865,3284.7,3284.6,0.64841]
[1736657768990,5.37537865,3284.7,3284.6,0.64841]
[1736657771490,5.37537865,3284.7,3284.6,1.00340274]
[1736657772295,5.16217865,3284.7,3284.6,1.00340274]
[1736657773290,1.95437865,3284.7,3284.6,1.00331607]
[1736657773795,0.21318,3285.0,3284.9,0.21319]
[1736657773995,0.21318,3285.0,3284.9,1.57177053]
[1736657774193,2.16755865,3285.0,3284.9,1.57177053]
[1736657774397,1.95437865,3285.0,3284.9,1.57177053]
[1736657774595,2.16755865,3285.0,3284.9,1.57177053]
[1736657774794,2.16755865,3285.0,3284.9,0.56809607]
[1736657775295,2.16755865,3285.0,3284.9,0.21319]
[1736657777300,1.95437865,3285.0,3284.9,1.57149963]
[1736657779203,1.95437865,3285.0,3284.9,1.57137554]
[1736657779803,3.2078,3285.2,3285.1,0.21318]
[1736657780204,5.16217865,3285.2,3285.1,0.21318]
[1736657780702,1.95437865,3285.2,3285.1,0.21318]
[1736657780903,1.95437865,3285.2,3285.1,1.21685446]
[1736657781099,1.95437865,3285.2,3285.1,1.5712047]
[1736657781299,1.95437865,3285.2,3285.1,1.21685446]
[1736657782506,2.16754865,3285.2,3285.1,1.21685446]
[1736657782702,1.95437865,3285.2,3285.1,1.21685446]
[1736657785103,1.95437865,3285.2,3285.1,1.00367446]
[1736657785309,0.21316,3285.4,3285.2,0.21316]
[1736657785610,0.21316,3285.4,3285.2,1.14556]
[1736657785911,0.21316,3285.4,3285.3,0.4501]
[1736657786098,0.21316,3285.4,3285.3,0.66326]
[1736657786313,2.16753865,3285.4,3285.3,0.66326]
[1736657792812,1.95437865,3285.4,3285.3,0.66326]
[1736657794816,3.17096311,3285.4,3285.2,0.21316]
[1736657795015,2.63144865,3285.3,3285.2,0.21316]
[1736657798818,2.41827865,3285.3,3285.2,0.21316]
[1736657799223,1.95437865,3285.3,3285.2,0.56770509]
[1736657800220,1.95437865,3285.3,3285.2,1.51700509]
[1736657800720,1.95437865,3285.3,3285.2,1.16246]
[1736657802015,1.95437865,3285.3,3285.2,1.51713976]
[1736657802812,1.95437865,3285.3,3285.2,1.51721527]
[1736657804825,1.95437865,3285.3,3285.2,1.04394034]
[1736657805026,2.40837865,3285.3,3285.2,1.04394034]
[1736657806626,1.95437865,3285.3,3285.2,1.04394034]
[1736657806827,1.95437865,3285.3,3285.2,1.04407867]
[1736657807219,1.95437865,3285.3,3285.2,1.04408017]
[1736657808832,1.95437865,3285.3,3285.2,1.04420028]
[1736657810631,1.95437865,3285.3,3285.2,0.68906]
[1736657810824,1.95437865,3285.3,3285.2,1.0442279]
[1736657811727,2.16728865,3285.3,3285.2,1.0442279]
[1736657812624,2.16728865,3285.3,3285.2,0.68906]
[1736657812828,2.16728865,3285.3,3285.2,1.04422505]
[1736657814729,2.16728865,3285.3,3285.2,1.04423148]
[1736657816634,2.16728865,3285.3,3285.2,1.04421673]
[1736657820536,2.16728865,3285.3,3285.2,0.68906]
[1736657820739,2.16728865,3285.3,3285.2,1.04424928]
[1736657821931,2.16728865,3285.3,3285.2,1.04426197]
[1736657823038,2.38044865,3285.3,3285.2,0.35520197]
[1736657823434,2.60378865,3285.3,3285.1,0.21317]
[1736657823635,2.16754865,3285.2,3285.1,0.21317]
[1736657823832,2.16754865,3285.2,3285.1,0.56836589]
[1736657824637,1.95437865,3285.2,3285.1,0.56836589]
[1736657827232,1.95437865,3285.2,3285.1,1.57204035]
[1736657827838,1.95437865,3285.2,3285.1,1.57192358]
[1736657830333,1.95437865,3285.2,3285.1,1.57191909]
[1736657831736,1.95437865,3285.2,3285.1,1.57191706]
[1736657833642,1.95437865,3285.2,3285.1,1.57193357]
[1736657835845,2.16728865,3285.2,3285.1,1.57193357]
[1736657837448,2.16728865,3285.2,3285.1,1.57194386]
[1736657838043,2.16728865,3285.2,3285.1,1.57194342]
[1736657839636,2.16728865,3285.2,3285.1,1.57194987]
[1736657841341,2.16728865,3285.2,3285.1,1.21684446]
[1736657841541,1.95437865,3285.2,3285.1,1.57195702]
[1736657843347,1.95437865,3285.2,3285.1,1.57197676]
[1736657844246,1.95437865,3285.2,3285.1,0.5683023]
[1736657845346,1.95437865,3285.2,3285.1,0.5683123]
[1736657847448,1.95437865,3285.2,3285.1,0.56835522]
[1736657849249,1.95437865,3285.2,3285.1,0.56837979]
[1736657850953,1.95437865,3285.2,3285.1,1.57205425]
[1736657853250,1.95437865,3285.2,3285.1,1.57204893]
[1736657853749,1.95437865,3285.2,3285.1,1.57204892]
[1736657855244,1.95437865,3285.2,3285.1,1.57207206]
[1736657857247,1.95437865,3285.2,3285.1,1.57211132]
[1736657861257,1.95437865,3285.2,3285.1,1.57209501]
[1736657861759,1.95437865,3285.2,3285.1,1.57209331]
[1736657863151,1.95437865,3285.2,3285.1,1.21685446]
[1736657863360,1.95437865,3285.2,3285.1,1.57208855]
[1736657864659,1.95437865,3285.2,3285.1,0.56841409]
[1736657865158,1.95437865,3285.2,3285.1,0.56841351]
[1736657867150,1.95437865,3285.2,3285.1,0.56839973]
[1736657868153,1.95437865,3285.2,3285.1,1.57207419]
[1736657869064,1.95437865,3285.2,3285.1,1.57206646]
[1736657869562,1.95437865,3285.2,3285.1,1.21685446]
[1736657869862,1.95437865,3285.2,3285.1,1.57206608]
[1736657871266,1.95437865,3285.2,3285.1,1.57206636]
[1736657873267,1.95437865,3285.2,3285.1,1.57206728]
[1736657873770,1.95437865,3285.2,3285.1,0.56839282]
[1736657874969,1.95437865,3285.2,3285.1,0.5683937]
[1736657875170,0.21315,3285.5,3285.4,0.21316]
[1736657875467,0.21315,3285.5,3285.4,0.3552137]
[1736657875663,2.16752865,3285.5,3285.4,0.3552137]
[1736657875867,2.16752865,3285.5,3285.4,0.5683737]
[1736657876568,2.16752865,3285.5,3285.4,0.21316]
[1736657877971,1.95437865,3285.5,3285.4,0.21316]
[1736657878167,2.16752865,3285.5,3285.4,0.21316]
[1736657885281,1.95437865,3285.5,3285.4,0.56838113]
[1736657886176,1.95437865,3285.5,3285.4,0.56836651]
[1736657888182,1.95437865,3285.5,3285.4,0.56837279]
[1736657889085,2.16752865,3285.5,3285.4,0.56837279]
[1736657890080,2.16752865,3285.5,3285.4,0.56838471]
[1736657890687,1.95437865,3285.5,3285.4,0.56838471]
[1736657891485,1.95437865,3285.5,3285.4,0.21316]
[1736657892585,1.95437865,3285.5,3285.4,0.56837703]
[1736657892989,1.95437865,3285.5,3285.4,1.95057703]
[1736657893890,1.95437865,3285.5,3285.4,1.59536]
[1736657894093,1.95437865,3285.5,3285.4,1.95052072]
[1736657894392,1.95437865,3285.5,3285.4,1.59536]
[1736657895094,2.38043865,3285.5,3285.4,1.59536]
[1736657895299,2.16728865,3285.5,3285.0,3.2078]
[1736657895601,0.21316,3285.4,3285.3,0.21316]
[1736657895895,0.42607,3285.4,3285.3,0.21316]
[1736657896093,2.38044865,3285.4,3285.3,0.21316]
[1736657896994,3.38412311,3285.4,3285.3,0.21316]
[1736657898585,3.38412311,3285.4,3285.3,0.56829927]
[1736657899798,3.38412311,3285.4,3285.3,0.56829833]
[1736657900191,3.38412311,3285.4,3285.3,0.21316]
[1736657900493,3.38412311,3285.4,3285.3,0.56829744]
[1736657903598,3.38412311,3285.4,3285.3,0.21316]
[1736657903897,3.38412311,3285.4,3285.3,0.35513524]
[1736657904097,3.38412311,3285.4,3285.3,0.56829524]
[1736657905599,2.38044865,3285.4,3285.3,0.56829524]
[1736657905899,2.16728865,3285.4,3285.3,0.56829524]
[1736657907001,2.38044865,3285.4,3285.3,0.21316]
[1736657907501,2.16728865,3285.4,3285.3,0.21316]
[1736657907701,2.38044865,3285.4,3285.3,0.21316]
[1736657911508,2.16728865,3285.4,3285.3,0.21316]
[1736657911703,2.16728865,3285.4,3285.3,0.56830017]
[1736657913410,1.95437865,3285.4,3285.3,0.56830017]
[1736657914300,1.21682446,3285.6,3285.3,0.35514017]
[1736657914500,1.95437865,3285.4,3285.3,0.21316]
[1736657914701,1.95437865,3285.4,3285.3,0.56830717]
[1736657915512,1.95437865,3285.4,3285.3,0.56831333]
[1736657916106,0.21315,3285.5,3285.3,0.35515333]
[1736657916302,0.21315,3285.5,3285.1,4.21147446]
[1736657916303,0.21315,3285.5,3285.4,0.56831333]
[1736657916711,2.16752865,3285.5,3285.4,0.56831333]
[1736657917303,2.16752865,3285.5,3285.4,0.21316]
[1736657917506,2.16752865,3285.5,3285.4,0.56831314]
[1736657919410,2.16752865,3285.5,3285.4,0.56831193]
[1736657920308,1.95437865,3285.5,3285.4,0.56831193]
[1736657920911,2.16752865,3285.5,3285.4,0.56831193]
[1736657921309,2.16752865,3285.5,3285.4,0.56830837]
[1736657921711,2.16752865,3285.5,3285.4,0.21316]
[1736657928716,2.16752865,3285.5,3285.4,0.56842297]
[1736657933215,2.16752865,3285.5,3285.4,0.56843446]
[1736657938322,1.95437865,3285.5,3285.4,0.56843446]
[1736657938917,1.95437865,3285.5,3285.4,0.56846733]
[1736657939317,2.16752865,3285.5,3285.4,0.56846733]
[1736657940825,2.16752865,3285.5,3285.4,0.56846716]
[1736657941624,1.95437865,3285.5,3285.4,0.56846716]
[1736657941825,2.16752865,3285.5,3285.4,0.56846716]
[1736657942531,0.4738,3285.9,3285.4,0.56846716]
[1736657942532,3.2078,3286.1,3286.0,0.21312]
[1736657942719,0.2131,3286.3,3286.0,1.35897952]
[1736657942915,1.00367446,3286.4,3286.1,0.35530506]
[1736657943120,1.00367446,3286.2,3286.1,1.16031]
[1736657943320,3.17115311,3286.2,3286.1,1.16031]
[1736657943625,2.95805311,3286.2,3286.1,1.16031]
[1736657943926,2.95805311,3286.2,3286.1,0.4776]
[1736657944123,3.17115311,3286.2,3286.0,0.21311]
[1736657944429,0.21313,3285.8,3285.7,0.4776]
[1736657944723,2.16751865,3285.7,3285.6,0.65674]
[1736657944925,2.38042865,3285.7,3285.6,0.4436]
[1736657946121,2.16728865,3285.7,3285.3,0.4687]
[1736657946322,1.00367446,3285.5,3285.4,0.21315]
[1736657946830,2.95805311,3285.5,3285.4,0.21315]
[1736657947029,1.21658446,3285.5,3285.4,0.21315]
[1736657947330,1.00367446,3285.5,3285.4,0.21315]
[1736657949131,1.21681446,3285.7,3285.4,0.21315]
[1736657949334,0.21291,3285.6,3285.4,0.4677]
[1736657949626,0.21291,3285.6,3285.5,0.21315]
[1736657950920,0.21291,3285.6,3285.5,0.56788258]
[1736657951322,0.21291,3285.6,3285.5,0.21315]
[1736657952231,2.16728865,3285.6,3285.5,0.21315]
[1736657972035,2.16728865,3285.6,3285.5,0.56803574]
[1736657973238,2.16728865,3285.6,3285.5,0.56819253]
[1736657977142,2.16728865,3285.6,3285.5,0.56825584]
[1736657977741,2.16728865,3285.6,3285.5,0.5682646]
[1736657979151,2.16728865,3285.6,3285.5,0.56824058]
[1736657980950,2.16728865,3285.6,3285.5,0.56827759]
[1736657981151,2.16728865,3285.6,3285.5,0.21315]
[1736657987050,0.21291,3285.6,3285.5,0.21315]
[1736657989257,0.21291,3285.6,3285.5,0.56833919]
[1736657990855,3.2078,3286.0,3285.9,0.21312]
[1736657991157,3.42092,3286.0,3285.9,0.21312]
[1736657992151,5.37529865,3286.0,3285.9,0.21312]
[1736657992358,0.21312,3285.9,3285.6,0.21314]
[1736657992551,1.95437865,3285.7,3285.3,0.9262]
[1736657992762,0.42605,3285.6,3285.5,0.21314]
[1736657992964,0.42605,3285.6,3285.5,0.56823126]
[1736657993167,2.38042865,3285.6,3285.5,0.56823126]
[1736657993868,3.38410311,3285.6,3285.5,0.56823126]
[1736657994565,3.17096311,3285.6,3285.5,0.56819307]
[1736657994768,2.16728865,3285.6,3285.5,0.56819307]
[1736657995268,2.16728865,3285.6,3285.5,0.56818961]
[1736657996365,2.16728865,3285.6,3285.5,0.21314]
[1736658000071,2.16728865,3285.6,3285.5,0.56818309]
[1736658000264,2.16728865,3285.6,3285.5,0.21314]
[1736658000666,3.38410311,3285.6,3285.5,0.21314]
[1736658002666,3.17096311,3285.6,3285.5,0.21314]
[1736658002971,2.16728865,3285.6,3285.5,0.21314]
[1736658003173,1.95437865,3285.6,3285.5,0.21314]
[1736658003376,1.95437865,3285.6,3285.5,0.56812409]
[1736658003572,1.95437865,3285.6,3285.5,0.21314]
[1736658003875,1.95437865,3285.6,3285.5,0.56812013]
[1736658007463,1.95437865,3285.6,3285.5,0.56821554]
[1736658007871,1.95437865,3285.6,3285.5,0.21314]
[1736658008077,1.95437865,3285.6,3285.5,0.56819883]
[1736658009365,1.95437865,3285.6,3285.5,0.56826142]
[1736658013181,1.95437865,3285.6,3285.5,0.21314]
[1736658013478,1.95437865,3285.6,3285.5,0.5680571]
[1736658015378,1.95437865,3285.6,3285.5,0.56804277]
[1736658017182,1.95437865,3285.6,3285.5,0.56802769]
[1736658018686,1.95437865,3285.6,3285.5,0.56798464]
[1736658019188,1.95437865,3285.6,3285.5,0.56798381]
[1736658020286,3.17096311,3285.6,3285.5,0.56798381]
[1736658020487,4.32290311,3285.6,3285.5,0.56798381]
[1736658020783,4.32290311,3285.6,3285.5,0.21314]
[1736658020979,0.21315,3285.5,3285.4,0.21315]
[1736658021180,2.15538446,3285.6,3285.5,0.21315]
[1736658021381,0.88545,3285.6,3285.5,0.56802605]
[1736658021574,2.38042865,3285.6,3285.5,0.56802605]
[1736658023183,2.16728865,3285.6,3285.5,0.56802605]
[1736658023484,1.95437865,3285.6,3285.5,0.56800976]
[1736658025085,1.95437865,3285.6,3285.5,0.35485976]
[1736658025287,1.95437865,3285.6,3285.5,0.56800976]
[1736658026789,2.16751865,3285.6,3285.5,0.56800976]
[1736658028589,2.16751865,3285.6,3285.5,0.56797234]
[1736658028888,1.95437865,3285.6,3285.5,0.56797234]
[1736658029185,2.16751865,3285.6,3285.5,0.56797234]
[1736658029787,1.95437865,3285.6,3285.5,0.56797234]
[1736658030184,1.95437865,3285.6,3285.5,0.56799527]
[1736658030684,1.95437865,3285.6,3285.5,0.56799119]
[1736658030986,1.95437865,3285.6,3285.5,0.21315]
[1736658031188,1.95437865,3285.6,3285.5,0.56799442]
[1736658034392,1.95437865,3285.6,3285.5,0.56798012]
[1736658036396,1.95437865,3285.6,3285.5,0.56796111]
[1736658038192,1.95437865,3285.6,3285.5,0.56793925]
[1736658038697,1.95437865,3285.6,3285.5,0.56793236]
[1736658040205,1.95437865,3285.6,3285.5,0.56791054]
[1736658042197,1.95437865,3285.6,3285.5,0.56788899]
[1736658045998,1.95437865,3285.6,3285.5,0.56787252]
[1736658046500,1.95437865,3285.6,3285.5,0.56786013]
[1736658049809,1.95437865,3285.6,3285.5,0.56787633]
[1736658051810,1.95437865,3285.6,3285.5,0.56792848]
[1736658052309,0.21313,3285.9,3285.8,0.21313]
[1736658052507,2.16750865,3285.9,3285.8,0.21313]
[1736658055606,1.95437865,3285.9,3285.8,0.21313]
[1736658056613,2.16749865,3285.9,3285.8,0.21313]
[1736658057109,1.95437865,3285.9,3285.8,0.21313]
[1736658057411,1.95437865,3285.9,3285.8,0.56793916]
[1736658057613,1.95437865,3285.9,3285.8,0.56794018]
[1736658058412,2.16749865,3285.9,3285.8,0.21313]
[1736658060813,2.16749865,3285.9,3285.8,0.56797776]
[1736658062812,2.16749865,3285.9,3285.8,0.56800479]
[1736658063916,2.16749865,3285.9,3285.8,0.21313]
[1736658064607,1.95437865,3285.9,3285.8,0.21313]
[1736658066112,2.16749865,3285.9,3285.8,0.21313]
[1736658067312,2.16842016,3285.9,3285.8,0.21313]
[1736658070614,1.95530016,3285.9,3285.6,0.8911]
[1736658070815,1.21681446,3285.8,3285.7,0.21313]
[1736658071013,1.69111446,3285.8,3285.7,0.56804224]
[1736658071214,3.64549311,3285.8,3285.7,0.56804224]
[1736658072424,3.64549311,3285.8,3285.7,0.56804275]
[1736658073221,3.43235311,3285.8,3285.7,0.56804275]
[1736658074317,3.43235311,3285.8,3285.7,0.56804843]
[1736658074815,3.64548311,3285.8,3285.7,0.56804843]
[1736658075022,3.17118311,3285.8,3285.7,0.56804843]
[1736658076123,3.17118311,3285.8,3285.7,0.21313]
[1736658076316,3.17118311,3285.8,3285.7,0.56805745]
[1736658076717,3.17118311,3285.8,3285.7,0.56804027]
[1736658077524,1.95437865,3285.8,3285.7,0.56804027]
[1736658077722,1.95437865,3285.8,3285.7,1.01294027]
[1736658079622,2.16750865,3285.8,3285.7,1.01294027]
[1736658079820,1.95437865,3285.8,3285.7,1.01294027]
[1736658080022,1.95437865,3285.8,3285.7,1.01292]
[1736658081323,1.95437865,3285.8,3285.7,0.79979]
[1736658082524,1.95437865,3285.8,3285.7,1.01293]
[1736658083424,2.16750865,3285.8,3285.7,1.01293]
[1736658083927,1.95437865,3285.8,3285.7,1.01293]
[1736658084321,1.95437865,3285.8,3285.7,1.01288075]
[1736658085123,0.21405151,3285.9,3285.7,0.79974075]
[1736658085312,0.21405151,3285.9,3285.8,0.56797075]
[1736658085714,2.16843016,3285.9,3285.8,0.56797075]
[1736658085916,2.16843016,3285.9,3285.8,0.56799236]
[1736658086115,2.16843016,3285.9,3285.8,0.21313]
[1736658088816,2.38134016,3285.9,3285.8,0.21313]
[1736658091024,0.21405151,3285.9,3285.8,0.21313]
[1736658091330,0.42696151,3285.9,3285.8,0.21313]
[1736658096131,2.38134016,3285.9,3285.8,0.21313]
[1736658103837,2.38134016,3285.9,3285.8,0.56789088]
[1736658105038,2.38134016,3285.9,3285.8,0.56789197]
[1736658106139,1.95530016,3285.9,3285.8,0.56789197]
[1736658106735,1.95530016,3285.9,3285.8,1.57156643]
[1736658106940,0.00092151,3285.9,3285.8,1.57156643]
[1736658107643,0.00092151,3285.9,3285.8,1.57127979]
[1736658108954,0.00092151,3285.9,3285.8,1.57121311]
[1736658110241,0.00092151,3285.9,3285.8,4.77901311]
[1736658110443,0.00092151,3285.9,3285.8,4.77890723]
[1736658110946,0.00092151,3285.9,3285.8,4.77890848]
[1736658112746,0.00092151,3285.9,3285.8,4.77883078]
[1736658114644,0.00092151,3285.9,3285.8,4.42460446]
[1736658114837,0.00092151,3285.9,3285.8,4.77878514]
[1736658115235,0.00092151,3285.9,3285.8,4.77876836]
[1736658116744,0.00092151,3285.9,3285.8,4.77872155]
[1736658117145,1.95530016,3285.9,3285.8,4.77872155]
[1736658120548,1.95530016,3285.9,3285.8,4.77865179]
[1736658121950,1.95530016,3285.9,3285.8,4.77863073]
[1736658122350,1.95530016,3285.9,3285.8,4.77862622]
[1736658123749,1.95530016,3285.9,3285.8,4.42460446]
[1736658123955,1.95530016,3285.9,3285.8,4.77867692]
[1736658130051,1.95530016,3285.9,3285.8,4.77886615]
[1736658131458,1.95530016,3285.9,3285.8,4.77897015]
[1736658133455,1.95530016,3285.9,3285.8,4.77909264]
[1736658137757,1.95530016,3285.9,3285.8,4.77932384]
[1736658139157,1.95530016,3285.9,3285.8,4.42460446]
[1736658139363,1.95530016,3285.9,3285.8,4.77927986]
[1736658140755,1.95437865,3285.9,3285.8,4.77927986]
[1736658141159,0.44894257,3286.4,3285.8,4.56615706]
[1736658141356,0.44894257,3286.4,3286.3,0.2131]
[1736658141551,2.40332122,3286.4,3286.3,0.2131]
[1736658141759,2.40332122,3286.4,3286.3,1.47703274]
[1736658143056,2.40332122,3286.4,3286.3,1.4760576]
[1736658143257,2.40332122,3286.4,3286.3,1.12147849]
[1736658144064,2.40332122,3286.4,3286.3,1.47601653]
[1736658144368,2.40332122,3286.4,3286.3,1.12147849]
[1736658144966,0.9036,3286.9,3286.3,1.79657258]
[1736658145162,0.9036,3286.9,3286.8,0.21306]
[1736658145565,2.85797865,3286.9,3286.8,0.21306]
[1736658153972,2.42347865,3286.9,3286.8,0.21306]
[1736658155063,2.42347865,3286.9,3286.8,1.21673446]
[1736658155064,1.95437865,3286.9,3286.8,1.21673446]
[1736658157273,1.95437865,3286.9,3286.8,0.21306]
[1736658166281,1.95437865,3286.9,3286.8,1.21673446]
[1736658167081,1.95437865,3286.9,3286.8,1.570724]
[1736658168785,1.95437865,3286.9,3286.8,1.57077683]
[1736658170077,1.95437865,3286.9,3286.8,1.21673446]
[1736658170277,1.95437865,3286.9,3286.8,1.57088404]
[1736658171785,0.21305,3287.1,3287.0,0.21305]
[1736658172285,1.95437865,3287.1,3287.0,0.21305]
[1736658172485,1.95437865,3287.1,3287.0,0.65195]
[1736658172882,2.16742865,3287.1,3287.0,0.65195]
[1736658173089,1.95437865,3287.1,3287.0,0.65195]
[1736658175087,2.16742865,3287.1,3287.0,0.65195]
[1736658175279,1.95437865,3287.1,3287.0,0.65195]
[1736658175480,2.16742865,3287.1,3287.0,0.65195]
[1736658175688,1.95437865,3287.1,3287.0,0.65195]
[1736658175886,2.16742865,3287.1,3287.0,0.65195]
[1736658176986,1.95437865,3287.1,3287.0,0.65195]
[1736658179491,2.16742865,3287.1,3287.0,0.65195]
[1736658180191,1.95437865,3287.1,3287.0,0.65195]
[1736658181491,3.29923865,3287.1,3287.0,0.21305]
[1736658182592,2.84203865,3287.1,3287.0,0.21305]
[1736658186393,2.38033865,3287.1,3287.0,0.21305]
[1736658189297,2.38033865,3287.1,3287.0,0.56737288]
[1736658189595,2.38033865,3287.1,3287.0,0.56737736]
[1736658191192,2.38033865,3287.1,3287.0,0.21305]
[1736658191396,2.38033865,3287.1,3287.0,0.56750802]
[1736658192696,2.38033865,3287.1,3287.0,0.56752298]
[1736658193197,0.42596,3287.1,3287.0,0.56752298]
[1736658193497,2.38033865,3287.1,3287.0,0.56752298]
[1736658194796,2.38033865,3287.1,3287.0,0.56744176]
[1736658196599,2.38033865,3287.1,3287.0,0.56752144]
[1736658196896,2.16742865,3287.1,3287.0,0.56752144]
[1736658198096,1.95437865,3287.1,3287.0,1.5711959]
[1736658198491,2.16742865,3287.1,3287.0,0.56735933]
[1736658198693,1.95437865,3287.1,3287.0,0.56735933]
[1736658199096,1.95437865,3287.1,3287.0,0.56737912]
[1736658200497,1.95437865,3287.1,3287.0,0.56735455]
[1736658202500,1.95437865,3287.1,3287.0,0.56731799]
[1736658204207,1.95437865,3287.1,3287.0,0.21305]
[1736658204405,1.95437865,3287.1,3287.0,0.56730198]
[1736658205304,1.95437865,3287.1,3287.0,0.35425198]
[1736658205500,1.95437865,3287.1,3287.0,0.56730198]
[1736658206297,1.95437865,3287.1,3287.0,0.56728999]
[1736658206712,1.95437865,3287.1,3287.0,0.56728272]
[1736658207213,0.66334,3287.3,3287.2,0.21304]
[1736658207419,0.66334,3287.3,3287.2,0.56727272]
[1736658207619,2.61771865,3287.3,3287.2,0.56727272]
[1736658208315,2.61771865,3287.3,3287.2,0.21304]
[1736658208613,2.61771865,3287.3,3287.2,0.56725148]
[1736658208815,1.95437865,3287.3,3287.2,0.56725148]
[1736658209218,2.16740865,3287.3,3287.2,0.56725148]
[1736658210223,0.21303,3287.3,3287.2,0.56725148]
[1736658210721,0.21303,3287.3,3287.2,0.5672165]
[1736658210915,3.88003,3287.4,3287.3,0.21303]
[1736658212723,0.67223,3287.4,3287.3,0.21303]
[1736658215218,2.62660865,3287.4,3287.3,0.21303]
[1736658224624,2.16740865,3287.4,3287.3,0.21303]
[1736658236637,2.16740865,3287.4,3287.3,0.56758341]
[1736658236938,2.16740865,3287.4,3287.3,0.56758448]
[1736658237638,2.16740865,3287.4,3287.3,0.21303]
[1736658237833,2.16740865,3287.4,3287.3,0.56758309]
[1736658238132,2.16740865,3287.4,3287.3,0.21303]
[1736658238436,2.16740865,3287.4,3287.3,0.56759116]
[1736658239033,2.16740865,3287.4,3287.3,0.56758711]
[1736658240536,2.16740865,3287.4,3287.3,0.5675894]
[1736658240931,2.16740865,3287.4,3287.3,0.56758983]
[1736658241131,2.16740865,3287.4,3287.3,0.21303]
[1736658241532,2.16740865,3287.4,3287.3,0.56759077]
[1736658241939,2.16740865,3287.4,3287.3,0.21303]
[1736658246735,0.21308,3286.6,3286.5,0.21308]
[1736658246940,0.2131,3286.2,3286.1,5.22977879]
[1736658247239,1.21677446,3286.2,3286.1,4.79687879]
[1736658247938,0.21313,3285.8,3285.6,0.64604]
[1736658248141,1.21680446,3285.8,3285.6,0.64604]
[1736658248334,0.21291,3285.7,3285.6,0.64604]
[1736658248735,1.21680446,3285.8,3285.6,0.4329]
[1736658249035,0.21291,3285.7,3285.6,0.64604]
[1736658249434,1.21680446,3285.8,3285.6,0.64604]
[1736658249642,0.21291,3285.7,3285.6,0.64604]
[1736658250140,1.21680446,3285.8,3285.6,0.64604]
[1736658250340,0.21291,3285.7,3285.6,0.64604]
[1736658250739,1.21680446,3285.8,3285.7,0.21314]
[1736658250942,1.42971446,3285.8,3285.6,0.64604]
[1736658252939,1.42971446,3285.8,3285.6,0.4329]
[1736658253243,1.42971446,3285.8,3285.7,0.21314]
[1736658253738,1.42971446,3285.8,3285.6,0.64604]
[1736658253939,1.21658446,3285.8,3285.6,0.64604]
[1736658254143,0.21314,3285.7,3285.6,0.64604]
[1736658255258,0.21314,3285.7,3285.6,0.4329]
[1736658255639,0.21314,3285.7,3285.6,0.64604]
[1736658256644,1.00367446,3285.8,3285.6,0.64604]
[1736658256844,0.21291,3285.7,3285.4,0.461]
[1736658257045,0.21316,3285.4,3285.3,0.4565]
[1736658257237,1.21683446,3285.4,3285.3,0.4565]
[1736658262246,0.21316,3285.3,3285.2,0.4458]
[1736658262549,0.42607,3285.3,3285.2,0.4458]